[Event "IV Elllobregat Open Chess Tmnt"]
[Site "Sant Boi de Llobregat, Spain"]
[Date "2023.12.03"]
[Round "4.18"]
[White "Bronstein, Or"]
[Black "Sanal, Vahap"]
[Result "0-1"]
[TimeControl "90min/40moves + 15min/end + 30sec from move 1"]
[WhiteFideId "2815770"]
[BlackFideId "6300545"]
[WhiteElo "2428"]
[BlackElo "2608"]

1. d4 {[%clk 01:30:52]} {[%emt 00:00:08]} d5 {[%clk 01:30:51]} {[%emt
00:00:08]} 2. c4 {[%clk 01:31:18]} {[%emt 00:00:05]} c6 {[%clk 01:31:13]}
{[%emt 00:00:08]} 3. Nf3 {[%clk 01:30:57]} {[%emt 00:00:52]} Nf6 {[%clk
01:31:34]} {[%emt 00:00:08]} 4. e3 {[%clk 01:30:38]} {[%emt 00:00:49]} Bf5
{[%clk 01:31:57]} {[%emt 00:00:06]} 5. Nc3 {[%clk 01:30:58]} {[%emt 00:00:11]}
e6 {[%clk 01:32:21]} {[%emt 00:00:06]} 6. Nh4 {[%clk 01:31:24]} {[%emt
00:00:05]} Bg6 {[%clk 01:32:44]} {[%emt 00:00:06]} 7. Nxg6 {[%clk 01:27:56]}
{[%emt 00:03:59]} hxg6 {[%clk 01:33:07]} {[%emt 00:00:06]} 8. Bd2 {[%clk
01:28:12]} {[%emt 00:00:14]} Nbd7 {[%clk 01:32:57]} {[%emt 00:00:39]} 9. Qc2
{[%clk 01:25:54]} {[%emt 00:02:49]} Qc7 {[%clk 01:31:28]} {[%emt 00:01:58]} 10.
cxd5 {[%clk 01:23:43]} {[%emt 00:02:42]} exd5 {[%clk 01:31:53]} {[%emt
00:00:05]} 11. h4 {[%clk 01:22:28]} {[%emt 00:01:45]} Bb4 {[%clk 01:22:33]}
{[%emt 00:09:48]} 12. O-O-O {[%clk 01:17:06]} {[%emt 00:05:53]} g5 {[%clk
01:19:45]} {[%emt 00:03:17]} 13. g3 {[%clk 01:05:05]} {[%emt 00:12:33]} O-O-O
{[%clk 01:09:45]} {[%emt 00:10:29]} 14. Be2 {[%clk 01:05:06]} {[%emt 00:00:28]}
Bxc3 {[%clk 01:03:54]} {[%emt 00:06:23]} 15. Bxc3 {[%clk 01:04:59]} {[%emt
00:00:37]} Ne4 {[%clk 01:04:14]} {[%emt 00:00:09]} 16. Be1 {[%clk 01:04:20]}
{[%emt 00:01:09]} f5 {[%clk 01:02:38]} {[%emt 00:02:06]} 17. Rg1 {[%clk
00:43:05]} {[%emt 00:21:47]} g4 {[%clk 01:02:11]} {[%emt 00:00:57]} 18. Kb1
{[%clk 00:43:01]} {[%emt 00:00:34]} Rh6 {[%clk 00:57:51]} {[%emt 00:04:49]} 19.
Rd3 {[%clk 00:29:20]} {[%emt 00:14:12]} Kb8 {[%clk 00:44:32]} {[%emt 00:13:48]}
20. Ra3 {[%clk 00:23:33]} {[%emt 00:06:18]} g5 {[%clk 00:36:14]} {[%emt
00:08:47]} 21. hxg5 {[%clk 00:17:10]} {[%emt 00:06:54]} Rh2 {[%clk 00:36:36]}
{[%emt 00:00:06]} 22. Qa4 {[%clk 00:12:05]} {[%emt 00:05:37]} b6 {[%clk
00:36:43]} {[%emt 00:00:23]} 23. Bd3 {[%clk 00:08:14]} {[%emt 00:04:22]} Rg8
{[%clk 00:29:29]} {[%emt 00:07:43]} 24. Bxe4 {[%clk 00:05:22]} {[%emt
00:03:23]} fxe4 {[%clk 00:29:52]} {[%emt 00:00:07]} 25. Bb4 {[%clk 00:05:47]}
{[%emt 00:00:06]} Rg6 {[%clk 00:21:08]} {[%emt 00:09:12]} 26. Rf1 {[%clk
00:05:02]} {[%emt 00:01:16]} a5 {[%clk 00:12:31]} {[%emt 00:09:07]} 27. Be1
{[%clk 00:00:49]} {[%emt 00:04:44]} Rxg5 {[%clk 00:11:03]} {[%emt 00:01:57]} 28.
Qb3 {[%clk 00:01:00]} {[%emt 00:00:19]} Qb7 {[%clk 00:10:50]} {[%emt 00:00:43]}
29. Qd1 {[%clk 00:00:56]} {[%emt 00:00:35]} Qa6 {[%clk 00:10:41]} {[%emt
00:00:39]} 30. Bb4 {[%clk 00:00:46]} {[%emt 00:00:40]} Kc7 {[%clk 00:10:19]}
{[%emt 00:00:52]} 31. Be7 {[%clk 00:00:41]} {[%emt 00:00:35]} Rf5 {[%clk
00:09:40]} {[%emt 00:01:09]} 32. Rc3 {[%clk 00:00:38]} {[%emt 00:00:34]} Rfxf2
{[%clk 00:08:03]} {[%emt 00:02:06]} 33. Rxf2 {[%clk 00:01:08]} Rxf2 {[%clk
00:08:24]} {[%emt 00:00:08]} 34. Qa4 {[%clk 00:00:50]} {[%emt 00:00:49]} Rf1+
{[%clk 00:04:48]} {[%emt 00:04:05]} 35. Kc2 {[%clk 00:01:19]} {[%emt 00:00:01]}
Rf2+ {[%clk 00:03:42]} {[%emt 00:01:36]} 36. Kb1 {[%clk 00:01:11]} {[%emt
00:00:39]} Rf1+ {[%clk 00:01:12]} {[%emt 00:02:59]} 37. Kc2 {[%clk 00:01:40]}
{[%emt 00:00:01]} Nb8 {[%clk 00:01:26]} {[%emt 00:00:16]} 38. a3 {[%clk
00:00:33]} {[%emt 00:01:38]} Qe2+ {[%clk 00:01:42]} {[%emt 00:00:13]} 39. Kb3
{[%clk 00:01:02]} {[%emt 00:00:02]} Qd1+ {[%clk 00:01:35]} {[%emt 00:00:35]} 40.
Rc2 {[%clk 00:16:30]} {[%emt 00:00:03]} Rf2 {[%clk 00:16:49]} {[%emt 00:00:16]}
0-1

[Event "IV Elllobregat Open Chess Tmnt"]
[Site "Sant Boi de Llobregat, Spain"]
[Date "2023.12.03"]
[Round "4.19"]
[White "Pultinevicius, Paulius"]
[Black "Golubka, Petro"]
[Result "1-0"]
[TimeControl "90min/40moves + 15min/end + 30sec from move 1"]
[WhiteFideId "12809390"]
[BlackFideId "14114224"]
[WhiteElo "2589"]
[BlackElo "2419"]

1. d4 {[%clk 01:30:58]} {[%emt 00:00:02]} Nf6 {[%clk 01:24:58]} {[%emt
00:06:01]} 2. c4 {[%clk 01:31:22]} {[%emt 00:00:08]} e6 {[%clk 01:25:18]}
{[%emt 00:00:08]} 3. Nf3 {[%clk 01:31:48]} {[%emt 00:00:06]} a6 {[%clk
01:25:36]} {[%emt 00:00:11]} 4. Bf4 {[%clk 01:27:02]} {[%emt 00:05:17]} b5
{[%clk 01:11:46]} {[%emt 00:14:17]} 5. e3 {[%clk 01:23:56]} {[%emt 00:03:39]}
Bb4+ {[%clk 01:10:37]} {[%emt 00:01:37]} 6. Nbd2 {[%clk 01:24:05]} {[%emt
00:00:22]} bxc4 {[%clk 01:10:41]} {[%emt 00:00:24]} 7. Bxc4 {[%clk 01:23:53]}
{[%emt 00:00:45]} O-O {[%clk 01:10:02]} {[%emt 00:01:05]} 8. Rc1 {[%clk
01:21:20]} {[%emt 00:03:06]} Bb7 {[%clk 01:06:57]} {[%emt 00:03:35]} 9. O-O
{[%clk 01:13:40]} {[%emt 00:08:10]} Bd6 {[%clk 01:03:37]} {[%emt 00:03:51]} 10.
Bg5 {[%clk 00:59:41]} {[%emt 00:14:29]} h6 {[%clk 00:59:15]} {[%emt 00:04:50]}
11. Bh4 {[%clk 00:57:54]} {[%emt 00:02:18]} Be7 {[%clk 00:59:02]} {[%emt
00:00:43]} 12. Bd3 {[%clk 00:48:46]} {[%emt 00:09:38]} Nc6 {[%clk 00:54:15]}
{[%emt 00:05:18]} 13. a3 {[%clk 00:39:39]} {[%emt 00:09:37]} Nh5 {[%clk
00:51:06]} {[%emt 00:03:38]} 14. Bxe7 {[%clk 00:37:54]} {[%emt 00:02:15]} Nxe7
{[%clk 00:51:18]} {[%emt 00:00:15]} 15. Nb3 {[%clk 00:34:38]} {[%emt 00:03:50]}
Bxf3 {[%clk 00:40:02]} {[%emt 00:11:47]} 16. Qxf3 {[%clk 00:35:01]} {[%emt
00:00:07]} Nf6 {[%clk 00:40:19]} {[%emt 00:00:10]} 17. Na5 {[%clk 00:33:39]}
{[%emt 00:01:55]} c6 {[%clk 00:40:18]} {[%emt 00:00:31]} 18. b4 {[%clk
00:32:08]} {[%emt 00:02:00]} Ne8 {[%clk 00:38:04]} {[%emt 00:02:45]} 19. Rc5
{[%clk 00:29:11]} {[%emt 00:03:27]} Nd6 {[%clk 00:35:43]} {[%emt 00:02:50]} 20.
Rb1 {[%clk 00:25:54]} {[%emt 00:03:48]} f5 {[%clk 00:31:41]} {[%emt 00:04:33]}
21. Qe2 {[%clk 00:24:04]} {[%emt 00:02:18]} Nb5 {[%clk 00:31:33]} {[%emt
00:00:39]} 22. a4 {[%clk 00:23:26]} {[%emt 00:01:07]} Nc7 {[%clk 00:31:38]}
{[%emt 00:00:23]} 23. Rcc1 {[%clk 00:23:32]} {[%emt 00:00:27]} Ned5 {[%clk
00:31:43]} {[%emt 00:00:26]} 24. Qd2 {[%clk 00:22:48]} {[%emt 00:01:14]} Rb8
{[%clk 00:31:27]} {[%emt 00:00:45]} 25. Rc5 {[%clk 00:22:40]} {[%emt 00:00:37]}
Qe7 {[%clk 00:30:52]} {[%emt 00:01:06]} 26. Rb3 {[%clk 00:20:48]} {[%emt
00:02:22]} Nb6 {[%clk 00:30:24]} {[%emt 00:00:58]} 27. Qa2 {[%clk 00:18:25]}
{[%emt 00:02:52]} Nbd5 {[%clk 00:30:31]} {[%emt 00:00:24]} 28. Qa3 {[%clk
00:18:23]} {[%emt 00:00:32]} e5 {[%clk 00:29:31]} {[%emt 00:01:30]} 29. dxe5
{[%clk 00:17:08]} {[%emt 00:01:44]} Rxb4 {[%clk 00:29:22]} {[%emt 00:00:38]} 30.
Rc1 {[%clk 00:16:20]} {[%emt 00:01:18]} Rxb3 {[%clk 00:29:16]} {[%emt
00:00:37]} 31. Qxe7 {[%clk 00:16:12]} {[%emt 00:00:37]} Nxe7 {[%clk 00:29:31]}
{[%emt 00:00:16]} 32. Nxb3 {[%clk 00:16:27]} {[%emt 00:00:15]} f4 {[%clk
00:25:47]} {[%emt 00:04:13]} 33. Nc5 {[%clk 00:05:13]} {[%emt 00:11:44]} fxe3
{[%clk 00:26:05]} {[%emt 00:00:12]} 34. fxe3 {[%clk 00:05:36]} {[%emt
00:00:08]} Ned5 {[%clk 00:22:13]} {[%emt 00:04:22]} 35. e4 {[%clk 00:05:07]}
{[%emt 00:00:58]} Nf4 {[%clk 00:20:15]} {[%emt 00:02:28]} 36. Bc4+ {[%clk
00:05:21]} {[%emt 00:00:17]} Kh7 {[%clk 00:20:17]} {[%emt 00:00:28]} 37. Nxd7
{[%clk 00:05:17]} {[%emt 00:00:33]} Re8 {[%clk 00:19:18]} {[%emt 00:01:29]} 38.
g3 {[%clk 00:04:07]} {[%emt 00:01:40]} Nfe6 {[%clk 00:19:09]} {[%emt 00:00:39]}
39. Bxe6 {[%clk 00:03:58]} {[%emt 00:00:39]} Nxe6 {[%clk 00:19:30]} {[%emt
00:00:09]} 40. Rxc6 {[%clk 00:19:23]} {[%emt 00:00:05]} Ng5 {[%clk 00:34:41]}
{[%emt 00:00:18]} 41. Rxa6 {[%clk 00:18:50]} {[%emt 00:01:04]} Nxe4 {[%clk
00:35:01]} {[%emt 00:00:07]} 42. Rc6 {[%clk 00:15:07]} {[%emt 00:04:14]} Ng5
{[%clk 00:34:08]} {[%emt 00:01:24]} 43. Kg2 {[%clk 00:11:50]} {[%emt 00:03:47]}
Rd8 {[%clk 00:34:01]} {[%emt 00:00:38]} 44. h4 {[%clk 00:10:15]} {[%emt
00:02:04]} Rxd7 {[%clk 00:28:09]} {[%emt 00:06:23]} 45. hxg5 {[%clk 00:10:39]}
{[%emt 00:00:05]} hxg5 {[%clk 00:28:31]} {[%emt 00:00:09]} 46. e6 {[%clk
00:09:21]} {[%emt 00:01:48]} Rd2+ {[%clk 00:28:08]} {[%emt 00:00:51]} 47. Kf3
{[%clk 00:09:30]} {[%emt 00:00:21]} Kg6 {[%clk 00:28:27]} {[%emt 00:00:09]} 48.
e7+ {[%clk 00:09:35]} {[%emt 00:00:29]} Kf7 {[%clk 00:28:50]} {[%emt 00:00:05]}
49. Re6 {[%clk 00:09:59]} {[%emt 00:00:07]} Ke8 {[%clk 00:29:13]} {[%emt
00:00:06]} 50. a5 {[%clk 00:10:06]} {[%emt 00:00:24]} Rd4 {[%clk 00:29:02]}
{[%emt 00:00:41]} 51. a6 {[%clk 00:01:37]} {[%emt 00:08:59]} g4+ {[%clk
00:27:21]} {[%emt 00:02:11]} 52. Ke2 {[%clk 00:01:23]} {[%emt 00:00:44]} Ra4
{[%clk 00:26:53]} {[%emt 00:00:58]} 53. Ke3 {[%clk 00:01:28]} {[%emt 00:00:25]}
Rb4 {[%clk 00:16:22]} {[%emt 00:11:01]} 54. Kd3 {[%clk 00:00:53]} {[%emt
00:01:04]} Rb3+ {[%clk 00:16:06]} {[%emt 00:00:46]} 55. Kc4 {[%clk 00:00:36]}
{[%emt 00:00:48]} Rxg3 {[%clk 00:16:22]} {[%emt 00:00:12]} 56. Kb4 {[%clk
00:00:59]} {[%emt 00:00:09]} Rg2 {[%clk 00:15:50]} {[%emt 00:01:02]} 57. Re3
{[%clk 00:01:12]} {[%emt 00:00:17]} Rb2+ {[%clk 00:12:01]} {[%emt 00:04:18]} 58.
Rb3 {[%clk 00:01:36]} {[%emt 00:00:07]} Ra2 {[%clk 00:12:11]} {[%emt 00:00:21]}
59. Ra3 {[%clk 00:02:00]} {[%emt 00:00:06]} Rb2+ {[%clk 00:11:43]} {[%emt
00:00:58]} 60. Kc5 {[%clk 00:02:24]} {[%emt 00:00:06]} Rc2+ {[%clk 00:11:02]}
{[%emt 00:01:08]} 61. Kd6 {[%clk 00:02:44]} {[%emt 00:00:12]} Rd2+ {[%clk
00:10:22]} {[%emt 00:01:06]} 62. Ke5 {[%clk 00:03:10]} {[%emt 00:00:07]} Re2+
{[%clk 00:09:57]} {[%emt 00:00:55]} 63. Kf4 {[%clk 00:03:34]} {[%emt 00:00:07]}
1-0

[Event "IV Elllobregat Open Chess Tmnt"]
[Site "Sant Boi de Llobregat, Spain"]
[Date "2023.12.03"]
[Round "4.20"]
[White "Martinez Fernandez, Adrian"]
[Black "Laurusas, Tomas"]
[Result "0-1"]
[TimeControl "90min/40moves + 15min/end + 30sec from move 1"]
[WhiteFideId "32049048"]
[BlackFideId "12803731"]
[WhiteElo "2405"]
[BlackElo "2566"]

1. e4 {[%clk 01:30:16]} {[%emt 00:00:33]} c5 {[%clk 01:30:29]} {[%emt
00:00:31]} 2. Nf3 {[%clk 01:29:58]} {[%emt 00:00:26]} e6 {[%clk 01:30:57]}
{[%emt 00:00:24]} 3. d4 {[%clk 01:30:10]} {[%emt 00:00:18]} cxd4 {[%clk
01:31:20]} {[%emt 00:00:07]} 4. Nxd4 {[%clk 01:30:33]} {[%emt 00:00:07]} a6
{[%clk 01:31:39]} {[%emt 00:00:11]} 5. Bd3 {[%clk 01:30:56]} {[%emt 00:00:07]}
Qc7 {[%clk 01:31:23]} {[%emt 00:00:46]} 6. O-O {[%clk 01:26:00]} {[%emt
00:05:26]} Nf6 {[%clk 01:31:16]} {[%emt 00:00:38]} 7. Qe2 {[%clk 01:25:12]}
{[%emt 00:01:19]} d6 {[%clk 01:31:37]} {[%emt 00:00:08]} 8. c4 {[%clk
01:25:33]} {[%emt 00:00:09]} g6 {[%clk 01:30:51]} {[%emt 00:01:16]} 9. Nc3
{[%clk 01:25:14]} {[%emt 00:00:49]} Bg7 {[%clk 01:31:11]} {[%emt 00:00:10]} 10.
Be3 {[%clk 01:24:53]} {[%emt 00:00:51]} O-O {[%clk 01:31:19]} {[%emt 00:00:22]}
11. Rad1 {[%clk 01:18:48]} {[%emt 00:06:35]} Nc6 {[%clk 01:30:12]} {[%emt
00:01:36]} 12. Nxc6 {[%clk 01:19:04]} {[%emt 00:00:15]} bxc6 {[%clk 01:30:08]}
{[%emt 00:00:34]} 13. h3 {[%clk 01:07:07]} {[%emt 00:12:27]} c5 {[%clk
01:25:03]} {[%emt 00:05:35]} 14. f4 {[%clk 01:04:29]} {[%emt 00:03:08]} Bb7
{[%clk 01:20:37]} {[%emt 00:04:56]} 15. Qf2 {[%clk 00:59:57]} {[%emt 00:05:02]}
Nd7 {[%clk 01:19:58]} {[%emt 00:01:09]} 16. f5 {[%clk 00:50:33]} {[%emt
00:09:54]} Rae8 {[%clk 01:00:34]} {[%emt 00:19:54]} 17. Kh1 {[%clk 00:47:52]}
{[%emt 00:03:11]} Re7 {[%clk 00:46:03]} {[%emt 00:15:00]} 18. Bb1 {[%clk
00:34:11]} {[%emt 00:14:12]} Be5 {[%clk 00:42:49]} {[%emt 00:03:44]} 19. Bh6
{[%clk 00:32:15]} {[%emt 00:02:27]} Rfe8 {[%clk 00:40:33]} {[%emt 00:02:46]} 20.
fxe6 {[%clk 00:19:51]} {[%emt 00:12:54]} fxe6 {[%clk 00:40:50]} {[%emt
00:00:13]} 21. Rd3 {[%clk 00:19:54]} {[%emt 00:00:28]} Bg7 {[%clk 00:29:39]}
{[%emt 00:11:40]} 22. Bxg7 {[%clk 00:19:01]} {[%emt 00:01:23]} Kxg7 {[%clk
00:30:06]} {[%emt 00:00:03]} 23. Rf3 {[%clk 00:18:55]} {[%emt 00:00:36]} Ne5
{[%clk 00:27:51]} {[%emt 00:02:45]} 24. Rf8 {[%clk 00:12:05]} {[%emt 00:07:20]}
Rf7 {[%clk 00:28:09]} {[%emt 00:00:12]} 25. Rxf7+ {[%clk 00:11:17]} {[%emt
00:01:18]} Qxf7 {[%clk 00:28:16]} {[%emt 00:00:23]} 26. Qxf7+ {[%clk 00:11:45]}
{[%emt 00:00:03]} Nxf7 {[%clk 00:28:37]} {[%emt 00:00:09]} 27. Kg1 {[%clk
00:12:11]} {[%emt 00:00:03]} Ne5 {[%clk 00:27:51]} {[%emt 00:01:16]} 28. b3
{[%clk 00:12:37]} {[%emt 00:00:05]} g5 {[%clk 00:27:40]} {[%emt 00:00:40]} 29.
Rd1 {[%clk 00:10:26]} {[%emt 00:02:41]} Rd8 {[%clk 00:27:21]} {[%emt 00:00:50]}
30. Na4 {[%clk 00:10:50]} {[%emt 00:00:05]} Nf7 {[%clk 00:27:43]} {[%emt
00:00:07]} 31. Kf2 {[%clk 00:09:29]} {[%emt 00:01:51]} Bc6 {[%clk 00:28:03]}
{[%emt 00:00:10]} 32. Nb2 {[%clk 00:08:49]} {[%emt 00:01:10]} h6 {[%clk
00:28:22]} {[%emt 00:00:11]} 33. Ke3 {[%clk 00:06:46]} {[%emt 00:02:32]} Kf6
{[%clk 00:28:37]} {[%emt 00:00:15]} 34. Nd3 {[%clk 00:06:29]} {[%emt 00:00:48]}
a5 {[%clk 00:28:18]} {[%emt 00:00:49]} 35. Bc2 {[%clk 00:05:48]} {[%emt
00:01:11]} Ra8 {[%clk 00:26:20]} {[%emt 00:02:28]} 36. g3 {[%clk 00:05:16]}
{[%emt 00:01:02]} Ke7 {[%clk 00:22:53]} {[%emt 00:03:57]} 37. Rb1 {[%clk
00:03:05]} {[%emt 00:02:41]} h5 {[%clk 00:19:15]} {[%emt 00:04:08]} 38. Rg1
{[%clk 00:00:39]} {[%emt 00:02:57]} Rh8 {[%clk 00:18:39]} {[%emt 00:01:06]} 39.
Bd1 {[%clk 00:00:47]} {[%emt 00:00:23]} h4 {[%clk 00:18:49]} {[%emt 00:00:19]}
40. Bg4 {[%clk 00:15:42]} {[%emt 00:00:35]} hxg3 {[%clk 00:33:41]} {[%emt
00:00:38]} 41. Rxg3 {[%clk 00:16:10]} {[%emt 00:00:01]} a4 {[%clk 00:32:10]}
{[%emt 00:02:01]} 42. bxa4 {[%emt 00:09:54]} Bxa4 {[%clk 00:32:31]} {[%emt
00:00:08]} 43. e5 {[%clk 00:06:58]} {[%emt 00:00:19]} Nxe5 {[%clk 00:23:02]}
{[%emt 00:09:59]} 44. Nxe5 {[%clk 00:07:27]} {[%emt 00:00:02]} dxe5 {[%clk
00:23:24]} {[%emt 00:00:08]} 45. Ke4 {[%clk 00:07:55]} {[%emt 00:00:02]} Rf8
{[%clk 00:23:35]} {[%emt 00:00:19]} 46. Kxe5 {[%clk 00:07:16]} {[%emt
00:01:10]} Rf1 {[%clk 00:23:44]} {[%emt 00:00:20]} 47. Re3 {[%clk 00:05:31]}
{[%emt 00:02:15]} Bd7 {[%clk 00:24:07]} {[%emt 00:00:07]} 48. Ke4 {[%clk
00:05:05]} {[%emt 00:00:56]} Ra1 {[%clk 00:23:02]} {[%emt 00:01:35]} 49. a3
{[%clk 00:04:25]} {[%emt 00:01:11]} Ra2 {[%clk 00:22:02]} {[%emt 00:01:29]} 50.
Rb3 {[%clk 00:02:14]} {[%emt 00:02:41]} Bc6+ {[%clk 00:21:14]} {[%emt
00:01:18]} 51. Ke5 {[%clk 00:00:34]} {[%emt 00:02:10]} Rc2 {[%clk 00:21:26]}
{[%emt 00:00:18]} 52. Re3 {[%clk 00:00:38]} {[%emt 00:00:26]} Bd7 {[%clk
00:21:34]} {[%emt 00:00:22]} 53. Be2 {[%clk 00:00:41]} {[%emt 00:00:28]} Bc8
{[%clk 00:19:22]} {[%emt 00:02:41]} 54. Bf1 {[%clk 00:00:38]} {[%emt 00:00:33]}
Rc1 {[%clk 00:19:36]} {[%emt 00:00:16]} 55. Be2 {[%clk 00:00:55]} {[%emt
00:00:13]} Ba6 {[%clk 00:19:15]} {[%emt 00:00:51]} 56. Re4 {[%clk 00:00:35]}
{[%emt 00:00:50]} Rc3 {[%clk 00:19:18]} {[%emt 00:00:26]} 57. a4 {[%clk
00:00:33]} {[%emt 00:00:32]} Bb7 {[%clk 00:19:39]} {[%emt 00:00:09]} 0-1

[Event "IV Elllobregat Open Chess Tmnt"]
[Site "Sant Boi de Llobregat, Spain"]
[Date "2023.12.03"]
[Round "4.21"]
[White "Fernandez Borrego, Pablo"]
[Black "Sosa, Tomas"]
[Result "0-1"]
[TimeControl "90min/40moves + 15min/end + 30sec from move 1"]
[WhiteFideId "2258285"]
[BlackFideId "121576"]
[WhiteElo "2409"]
[BlackElo "2558"]

1. e4 {[%clk 01:30:57]} {[%emt 00:00:02]} e5 {[%clk 01:29:54]} {[%emt
00:01:01]} 2. Nf3 {[%clk 01:31:04]} {[%emt 00:00:29]} Nc6 {[%clk 01:30:00]}
{[%emt 00:00:23]} 3. d4 {[%clk 01:29:46]} {[%emt 00:01:48]} exd4 {[%clk
01:30:22]} {[%emt 00:00:08]} 4. Nxd4 {[%clk 01:30:01]} {[%emt 00:00:16]} Bc5
{[%clk 01:28:56]} {[%emt 00:01:55]} 5. Nb3 {[%clk 01:28:52]} {[%emt 00:01:39]}
Bb6 {[%clk 01:27:23]} {[%emt 00:02:03]} 6. Nc3 {[%clk 01:24:39]} {[%emt
00:04:44]} Qf6 {[%clk 01:26:28]} {[%emt 00:01:25]} 7. f4 {[%clk 01:17:37]}
{[%emt 00:07:32]} Nge7 {[%clk 01:25:16]} {[%emt 00:01:41]} 8. Qf3 {[%clk
01:13:02]} {[%emt 00:05:05]} Nb4 {[%clk 01:20:29]} {[%emt 00:05:17]} 9. Bd3
{[%clk 01:06:47]} {[%emt 00:06:46]} d5 {[%clk 01:16:56]} {[%emt 00:04:03]} 10.
Be3 {[%clk 00:50:58]} {[%emt 00:16:19]} Bg4 {[%clk 01:05:25]} {[%emt 00:12:00]}
11. Qf2 {[%clk 00:47:10]} {[%emt 00:04:18]} dxe4 {[%clk 00:59:02]} {[%emt
00:06:53]} 12. Bxe4 {[%clk 00:46:46]} {[%emt 00:00:54]} Bxe3 {[%clk 00:36:09]}
{[%emt 00:23:23]} 13. Qxe3 {[%clk 00:47:12]} {[%emt 00:00:04]} Qe6 {[%clk
00:33:31]} {[%emt 00:03:07]} 14. Nd4 {[%clk 00:41:54]} {[%emt 00:05:48]} Qb6
{[%clk 00:33:31]} {[%emt 00:00:30]} 15. h3 {[%clk 00:26:31]} {[%emt 00:15:53]}
O-O-O {[%clk 00:32:33]} {[%emt 00:01:27]} 16. hxg4 {[%clk 00:25:39]} {[%emt
00:01:22]} Rxd4 {[%clk 00:32:36]} {[%emt 00:00:27]} 17. Na4 {[%clk 00:15:37]}
{[%emt 00:10:32]} Qe6 {[%clk 00:27:04]} {[%emt 00:06:02]} 18. Bxb7+ {[%clk
00:05:02]} {[%emt 00:11:05]} Kb8 {[%clk 00:27:00]} {[%emt 00:00:34]} 19. Qxe6
{[%clk 00:04:34]} {[%emt 00:00:59]} Nxc2+ {[%clk 00:27:15]} {[%emt 00:00:15]}
20. Ke2 {[%clk 00:03:33]} {[%emt 00:01:31]} fxe6 {[%clk 00:27:38]} {[%emt
00:00:06]} 21. Nc5 {[%clk 00:03:48]} {[%emt 00:00:15]} Nxa1 {[%clk 00:23:17]}
{[%emt 00:04:51]} 22. Rxa1 {[%clk 00:04:13]} {[%emt 00:00:06]} Rc4 {[%clk
00:22:17]} {[%emt 00:01:30]} 23. Nb3 {[%clk 00:04:39]} {[%emt 00:00:04]} Rc2+
{[%clk 00:21:00]} {[%emt 00:01:46]} 24. Kd3 {[%clk 00:05:01]} {[%emt 00:00:09]}
Rxb2 {[%clk 00:21:25]} {[%emt 00:00:06]} 25. Bf3 {[%clk 00:05:06]} {[%emt
00:00:25]} Rd8+ {[%clk 00:21:19]} {[%emt 00:00:35]} 26. Kc3 {[%clk 00:04:54]}
{[%emt 00:00:43]} Rf2 {[%clk 00:21:43]} {[%emt 00:00:06]} 27. Nc5 {[%clk
00:02:50]} {[%emt 00:02:34]} Nd5+ {[%clk 00:20:56]} {[%emt 00:01:16]} 28. Kd4
{[%clk 00:03:01]} {[%emt 00:00:19]} Nb6+ {[%clk 00:14:14]} {[%emt 00:07:12]} 29.
Ke3 {[%clk 00:01:20]} {[%emt 00:02:12]} Rfd2 {[%clk 00:10:58]} {[%emt
00:03:46]} 30. Nxe6 {[%clk 00:01:46]} {[%emt 00:00:04]} Nc4+ {[%clk 00:09:49]}
{[%emt 00:01:39]} 31. Ke4 {[%clk 00:02:15]} {[%emt 00:00:01]} R8d5 {[%clk
00:09:57]} {[%emt 00:00:21]} 32. f5 {[%clk 00:01:05]} {[%emt 00:01:40]} g5
{[%clk 00:09:51]} {[%emt 00:00:36]} 33. fxg6 {[%clk 00:01:17]} {[%emt
00:00:18]} hxg6 {[%clk 00:06:08]} {[%emt 00:04:13]} 34. Kf4 {[%clk 00:01:24]}
{[%emt 00:00:23]} Rd6 {[%clk 00:05:52]} {[%emt 00:00:45]} 35. Rh1 {[%clk
00:01:03]} {[%emt 00:00:51]} c6 {[%clk 00:01:46]} {[%emt 00:04:36]} 36. Rh8+
{[%clk 00:01:09]} {[%emt 00:00:24]} Kb7 {[%clk 00:02:14]} {[%emt 00:00:02]} 37.
Nc5+ {[%clk 00:01:20]} {[%emt 00:00:19]} Kb6 {[%clk 00:02:25]} {[%emt
00:00:17]} 38. Ne4 {[%clk 00:01:32]} {[%emt 00:00:19]} R2d4 {[%clk 00:01:39]}
{[%emt 00:01:16]} 39. Kg5 {[%clk 00:01:47]} {[%emt 00:00:15]} Re6 {[%clk
00:01:36]} {[%emt 00:00:33]} 40. Nf6 {[%clk 00:15:52]} {[%emt 00:01:26]} Rdd6
{[%clk 00:16:50]} {[%emt 00:00:15]} 41. Rb8+ {[%clk 00:15:47]} {[%emt
00:00:36]} Ka5 {[%clk 00:16:09]} {[%emt 00:01:10]} 42. Rf8 {[%clk 00:13:10]}
{[%emt 00:03:07]} Ne5 {[%clk 00:16:16]} {[%emt 00:00:24]} 43. Ne4 {[%clk
00:11:08]} {[%emt 00:02:32]} Rd5 {[%clk 00:15:50]} {[%emt 00:00:55]} 44. Kf4
{[%clk 00:09:59]} {[%emt 00:01:39]} Nxf3 {[%clk 00:12:23]} {[%emt 00:03:56]} 45.
gxf3 {[%clk 00:10:26]} {[%emt 00:00:03]} Kb4 {[%clk 00:12:39]} {[%emt
00:00:14]} 46. Rb8+ {[%clk 00:09:10]} {[%emt 00:01:47]} Rb5 {[%clk 00:12:53]}
{[%emt 00:00:17]} 47. Rd8 {[%clk 00:09:10]} {[%emt 00:00:30]} Ka3 {[%clk
00:08:54]} {[%emt 00:04:28]} 48. Rd2 {[%clk 00:08:13]} {[%emt 00:01:26]} Rb2
{[%clk 00:07:40]} {[%emt 00:01:43]} 49. Rd7 {[%clk 00:05:32]} {[%emt 00:03:13]}
a5 {[%clk 00:07:48]} {[%emt 00:00:22]} 50. Nc5 {[%clk 00:04:27]} {[%emt
00:01:35]} Rf6+ {[%clk 00:07:51]} {[%emt 00:00:27]} 51. Kg5 {[%clk 00:04:16]}
{[%emt 00:00:41]} Rxf3 {[%clk 00:07:58]} {[%emt 00:00:23]} 52. Kxg6 {[%clk
00:04:41]} {[%emt 00:00:05]} Kxa2 {[%clk 00:07:11]} {[%emt 00:01:17]} 53. g5
{[%clk 00:02:57]} {[%emt 00:02:14]} Rb5 {[%clk 00:07:17]} {[%emt 00:00:24]} 54.
Rd2+ {[%clk 00:02:54]} {[%emt 00:00:33]} Kb1 {[%clk 00:07:03]} {[%emt
00:00:42]} 55. Ne4 {[%clk 00:03:22]} {[%emt 00:00:04]} Re3 {[%clk 00:06:28]}
{[%emt 00:01:05]} 56. Rd4 {[%clk 00:02:04]} {[%emt 00:01:48]} Rb4 {[%clk
00:05:36]} {[%emt 00:01:22]} 57. Nd2+ {[%clk 00:02:18]} {[%emt 00:00:16]} Kc2
{[%clk 00:06:01]} {[%emt 00:00:05]} 58. Nc4 {[%clk 00:02:43]} {[%emt 00:00:07]}
Rc3 {[%clk 00:05:17]} {[%emt 00:01:14]} 0-1